[Event "Titled Tuesday Blitz May 31 Late 2022"]
[White "Maghsoodloo, Parham"]
[Black "Trost, Edvin"]
[WhiteFideId "12539929"]
[BlackFideId "1729519"]
[WhiteElo "2630"]
[BlackElo "2165"]
[Result "0-1"]
[Round "07"]
[TimeControl "180+1"]
[Date "2022.05.31"]
[WhiteClock "0:01:01"]
[BlackClock "0:01:32"]

1. e4 {[%clk 0:03:00]}  e6 {[%clk 0:02:58]} 2. d4 {[%clk 0:03:01]}  d5 {[%clk 0:02:59]} 3. e5 {[%clk 0:03:01]}  c5 {[%clk 0:02:58]} 4. c3 {[%clk 0:03:02]}  Nc6 {[%clk 0:02:59]} 5. Nf3 {[%clk 0:03:02]}  Qb6 {[%clk 0:02:58]} 6. a3 {[%clk 0:03:02]}  c4 {[%clk 0:02:57]} 7. Nbd2 {[%clk 0:03:02]}  Qc7 {[%clk 0:02:57]} 8. h4 {[%clk 0:02:57]}  Nge7 {[%clk 0:02:57]} 9. h5 {[%clk 0:02:57]}  f6 {[%clk 0:02:44]} 10. exf6 {[%clk 0:02:53]}  gxf6 {[%clk 0:02:45]} 11. Be2 {[%clk 0:02:52]}  Nf5 {[%clk 0:02:45]} 12. Nf1 {[%clk 0:02:48]}  Kf7 {[%clk 0:02:44]} 13. g4 {[%clk 0:02:47]}  Nd6 {[%clk 0:02:40]} 14. Bf4 {[%clk 0:02:47]}  Qb6 {[%clk 0:02:39]} 15. Qc2 {[%clk 0:02:47]}  Be7 {[%clk 0:02:37]} 16. Ng3 {[%clk 0:02:46]}  Bd7 {[%clk 0:02:35]} 17. g5 {[%clk 0:02:45]}  fxg5 {[%clk 0:02:35]} 18. Nxg5+ {[%clk 0:02:44]}  Bxg5 {[%clk 0:02:28]} 19. Bxg5 {[%clk 0:02:43]}  Nf5 {[%clk 0:02:28]} 20. Bf3 {[%clk 0:02:30]}  Rhg8 {[%clk 0:02:23]} 21. Bf4 {[%clk 0:02:18]}  Raf8 {[%clk 0:01:56]} 22. Nxf5 {[%clk 0:02:17]}  exf5 {[%clk 0:01:54]} 23. Bxd5+ {[%clk 0:02:18]}  Be6 {[%clk 0:01:55]} 24. Bxe6+ {[%clk 0:02:18]}  Kxe6 {[%clk 0:01:55]} 25. d5+ {[%clk 0:02:19]}  Kxd5 {[%clk 0:01:52]} 26. O-O-O+ {[%clk 0:02:19]}  Ke6 {[%clk 0:01:50]} 27. Rhe1+ {[%clk 0:02:19]}  Kf6 {[%clk 0:01:50]} 28. Rd6+ {[%clk 0:02:18]}  Kg7 {[%clk 0:01:49]} 29. Qxf5 {[%clk 0:02:19]}  Rxf5 {[%clk 0:01:48]} 30. Rd7+ {[%clk 0:01:33]}  Kh8 {[%clk 0:01:46]} 31. Be3 {[%clk 0:01:29]}  Qb5 {[%clk 0:01:47]} 32. h6 {[%clk 0:01:23]}  Rd5 {[%clk 0:01:43]} 33. Rc7 {[%clk 0:01:16]}  Rgd8 {[%clk 0:01:39]} 34. Bf4 {[%clk 0:01:06]}  Qb3 {[%clk 0:01:37]} 35. Rd7 {[%clk 0:01:01]}  R5xd7 {[%clk 0:01:32]} 0-1


[Site "https://www.chess.com"]

[Event "Titled Tuesday Blitz May 31 Late 2022"]
[White "Norowitz, Yaacov"]
[Black "Vasquez Schroeder, Rodrigo"]
[WhiteFideId "2024799"]
[BlackFideId "3400042"]
[WhiteElo "2412"]
[BlackElo "2567"]
[Result "1-0"]
[Round "07"]
[TimeControl "180+1"]
[Date "2022.05.31"]
[WhiteClock "0:01:01"]
[BlackClock "0:00:16"]

1. d4 {[%clk 0:03:00]}  Nf6 {[%clk 0:02:58]} 2. e3 {[%clk 0:03:00]}  g6 {[%clk 0:02:55]} 3. Nf3 {[%clk 0:03:00]}  Bg7 {[%clk 0:02:55]} 4. Be2 {[%clk 0:03:00]}  O-O {[%clk 0:02:56]} 5. O-O {[%clk 0:03:01]}  d6 {[%clk 0:02:55]} 6. b3 {[%clk 0:03:01]}  b6 {[%clk 0:02:55]} 7. Bb2 {[%clk 0:03:01]}  Bb7 {[%clk 0:02:56]} 8. c4 {[%clk 0:03:02]}  e6 {[%clk 0:02:56]} 9. Qc2 {[%clk 0:03:02]}  Nbd7 {[%clk 0:02:56]} 10. Nc3 {[%clk 0:03:02]}  a6 {[%clk 0:02:56]} 11. Rad1 {[%clk 0:03:02]}  c5 {[%clk 0:02:55]} 12. Qb1 {[%clk 0:02:57]}  Qe7 {[%clk 0:02:53]} 13. Qa1 {[%clk 0:02:57]}  Rfd8 {[%clk 0:02:53]} 14. Rd2 {[%clk 0:02:57]}  cxd4 {[%clk 0:02:52]} 15. Nxd4 {[%clk 0:02:56]}  Nc5 {[%clk 0:02:49]} 16. Rfd1 {[%clk 0:02:55]}  Rac8 {[%clk 0:02:49]} 17. h3 {[%clk 0:02:55]}  d5 {[%clk 0:02:37]} 18. cxd5 {[%clk 0:02:54]}  exd5 {[%clk 0:02:31]} 19. Nf3 {[%clk 0:02:52]}  Nce4 {[%clk 0:02:21]} 20. Nxe4 {[%clk 0:02:47]}  dxe4 {[%clk 0:02:20]} 21. Nd4 {[%clk 0:02:44]}  Ne8 {[%clk 0:02:13]} 22. Bg4 {[%clk 0:02:33]}  Rb8 {[%clk 0:02:02]} 23. a4 {[%clk 0:02:29]}  h5 {[%clk 0:01:55]} 24. Be2 {[%clk 0:02:22]}  Rbc8 {[%clk 0:01:54]} 25. Bf1 {[%clk 0:02:13]}  Nf6 {[%clk 0:01:41]} 26. Rc1 {[%clk 0:02:09]}  Rxc1 {[%clk 0:01:30]} 27. Qxc1 {[%clk 0:02:08]}  Rc8 {[%clk 0:01:29]} 28. Rc2 {[%clk 0:02:08]}  Rxc2 {[%clk 0:01:29]} 29. Qxc2 {[%clk 0:02:09]}  Qd7 {[%clk 0:01:30]} 30. Bc4 {[%clk 0:02:05]}  Ne8 {[%clk 0:01:23]} 31. Qe2 {[%clk 0:02:03]}  Qc8 {[%clk 0:01:17]} 32. Qd2 {[%clk 0:01:58]}  Nd6 {[%clk 0:01:13]} 33. Be2 {[%clk 0:01:58]}  Qc5 {[%clk 0:01:10]} 34. Bc3 {[%clk 0:01:56]}  a5 {[%clk 0:01:09]} 35. b4 {[%clk 0:01:52]}  axb4 {[%clk 0:01:09]} 36. Bxb4 {[%clk 0:01:53]}  Qd5 {[%clk 0:01:09]} 37. Qc2 {[%clk 0:01:48]}  Nf5 {[%clk 0:00:34]} 38. Nxf5 {[%clk 0:01:41]}  Qxf5 {[%clk 0:00:34]} 39. Qc7 {[%clk 0:01:36]}  Qc8 {[%clk 0:00:34]} 40. Qxb6 {[%clk 0:01:25]}  Qc1+ {[%clk 0:00:30]} 41. Bf1 {[%clk 0:01:23]}  Bc6 {[%clk 0:00:28]} 42. a5 {[%clk 0:01:14]}  Be5 {[%clk 0:00:23]} 43. Qc5 {[%clk 0:01:08]}  Qb2 {[%clk 0:00:16]} 44. Qf8+ {[%clk 0:01:01]} 1-0


[Site "https://www.chess.com"]

[Event "Titled Tuesday Blitz May 31 Late 2022"]
[White "Oparin, Grigoriy"]
[Black "Taichman, Ori"]
[WhiteFideId "24125890"]
[BlackFideId "2804069"]
[WhiteElo "2665"]
[BlackElo "2227"]
[Result "1-0"]
[Round "07"]
[TimeControl "180+1"]
[Date "2022.05.31"]
[WhiteClock "0:02:16"]
[BlackClock "0:00:12"]

1. g3 {[%clk 0:03:00]}  g6 {[%clk 0:02:56]} 2. Bg2 {[%clk 0:03:00]}  Bg7 {[%clk 0:02:56]} 3. c4 {[%clk 0:03:01]}  Nf6 {[%clk 0:02:56]} 4. Nc3 {[%clk 0:03:02]}  O-O {[%clk 0:02:57]} 5. e4 {[%clk 0:03:03]}  d6 {[%clk 0:02:57]} 6. Nge2 {[%clk 0:03:03]}  c5 {[%clk 0:02:58]} 7. d4 {[%clk 0:03:03]}  cxd4 {[%clk 0:02:57]} 8. Nxd4 {[%clk 0:03:04]}  Nc6 {[%clk 0:02:58]} 9. Nxc6 {[%clk 0:03:02]}  bxc6 {[%clk 0:02:58]} 10. O-O {[%clk 0:03:03]}  Rb8 {[%clk 0:02:57]} 11. Qc2 {[%clk 0:03:03]}  Nd7 {[%clk 0:02:52]} 12. b3 {[%clk 0:02:59]}  Nc5 {[%clk 0:02:49]} 13. Be3 {[%clk 0:02:57]}  Qa5 {[%clk 0:02:46]} 14. Ne2 {[%clk 0:02:47]}  Bxa1 {[%clk 0:02:43]} 15. Rxa1 {[%clk 0:02:47]}  Ba6 {[%clk 0:01:36]} 16. Rd1 {[%clk 0:02:46]}  Rfd8 {[%clk 0:01:29]} 17. h4 {[%clk 0:02:46]}  Rbc8 {[%clk 0:01:26]} 18. h5 {[%clk 0:02:45]}  gxh5 {[%clk 0:01:13]} 19. Nf4 {[%clk 0:02:43]}  Ne6 {[%clk 0:01:12]} 20. Nxe6 {[%clk 0:02:33]}  fxe6 {[%clk 0:01:13]} 21. Bh3 {[%clk 0:02:34]}  Kg7 {[%clk 0:00:27]} 22. Bxe6 {[%clk 0:02:31]}  h4 {[%clk 0:00:20]} 23. Qb2+ {[%clk 0:02:18]}  Kg6 {[%clk 0:00:18]} 24. f4 {[%clk 0:02:18]}  hxg3 {[%clk 0:00:13]} 25. f5+ {[%clk 0:02:17]}  Kh5 {[%clk 0:00:12]} 26. Qe2+ {[%clk 0:02:15]}  Kh4 {[%clk 0:00:12]} 27. Kg2 {[%clk 0:02:16]} 1-0


[Site "https://www.chess.com"]

[Event "Titled Tuesday Blitz May 31 Late 2022"]
[White "Papp, Levente"]
[Black "Zakarian, David"]
[WhiteFideId "751243"]
[BlackFideId "13301276"]
[WhiteElo "2308"]
[BlackElo "2459"]
[Result "1-0"]
[Round "07"]
[TimeControl "180+1"]
[Date "2022.06.01"]
[WhiteClock "0:00:07"]
[BlackClock "0:00:24"]

1. Nf3 {[%clk 0:03:00]}  c5 {[%clk 0:02:58]} 2. g3 {[%clk 0:02:59]}  Nc6 {[%clk 0:02:58]} 3. d4 {[%clk 0:02:58]}  cxd4 {[%clk 0:02:55]} 4. Nxd4 {[%clk 0:02:59]}  e5 {[%clk 0:02:54]} 5. Nxc6 {[%clk 0:02:58]}  dxc6 {[%clk 0:02:50]} 6. Qxd8+ {[%clk 0:02:59]}  Kxd8 {[%clk 0:02:51]} 7. Bg2 {[%clk 0:02:52]}  Bf5 {[%clk 0:02:50]} 8. Nc3 {[%clk 0:02:45]}  Bxc2 {[%clk 0:02:43]} 9. e4 {[%clk 0:02:36]}  Bd3 {[%clk 0:02:43]} 10. Bg5+ {[%clk 0:02:36]}  Kc7 {[%clk 0:02:38]} 11. O-O-O {[%clk 0:02:35]}  Bc4 {[%clk 0:02:32]} 12. Bh3 {[%clk 0:02:35]}  Be6 {[%clk 0:02:27]} 13. Bxe6 {[%clk 0:02:34]}  fxe6 {[%clk 0:02:27]} 14. Rd2 {[%clk 0:01:58]}  h6 {[%clk 0:02:26]} 15. Be3 {[%clk 0:01:57]}  Nf6 {[%clk 0:02:22]} 16. f3 {[%clk 0:01:53]}  Bb4 {[%clk 0:02:20]} 17. Rhd1 {[%clk 0:01:50]}  b6 {[%clk 0:02:10]} 18. Kc2 {[%clk 0:01:42]}  Rad8 {[%clk 0:02:08]} 19. Rxd8 {[%clk 0:01:35]}  Rxd8 {[%clk 0:02:09]} 20. Rxd8 {[%clk 0:01:35]}  Kxd8 {[%clk 0:02:09]} 21. Nd1 {[%clk 0:01:30]}  Kc7 {[%clk 0:02:06]} 22. Nf2 {[%clk 0:01:26]}  a5 {[%clk 0:02:00]} 23. Kd3 {[%clk 0:01:13]}  Bd6 {[%clk 0:01:55]} 24. a4 {[%clk 0:00:57]}  Nd7 {[%clk 0:01:55]} 25. Nd1 {[%clk 0:00:53]}  Bc5 {[%clk 0:01:53]} 26. Bd2 {[%clk 0:00:51]}  Bd4 {[%clk 0:01:52]} 27. b3 {[%clk 0:00:49]}  Nc5+ {[%clk 0:01:47]} 28. Kc2 {[%clk 0:00:46]}  Kd6 {[%clk 0:01:39]} 29. Be3 {[%clk 0:00:43]}  Na6 {[%clk 0:01:34]} 30. Kd3 {[%clk 0:00:42]}  Kc5 {[%clk 0:01:28]} 31. Bd2 {[%clk 0:00:37]}  Nb4+ {[%clk 0:01:25]} 32. Ke2 {[%clk 0:00:34]}  b5 {[%clk 0:01:23]} 33. Ne3 {[%clk 0:00:28]}  bxa4 {[%clk 0:01:17]} 34. bxa4 {[%clk 0:00:29]}  Bxe3 {[%clk 0:01:00]} 35. Bxe3+ {[%clk 0:00:29]}  Kc4 {[%clk 0:01:00]} 36. Bb6 {[%clk 0:00:30]}  Kb3 {[%clk 0:01:00]} 37. Bxa5 {[%clk 0:00:28]}  c5 {[%clk 0:00:56]} 38. Bc7 {[%clk 0:00:23]}  Kxa4 {[%clk 0:00:51]} 39. Bxe5 {[%clk 0:00:23]}  Kb3 {[%clk 0:00:52]} 40. Bxg7 {[%clk 0:00:23]}  h5 {[%clk 0:00:51]} 41. g4 {[%clk 0:00:21]}  hxg4 {[%clk 0:00:50]} 42. fxg4 {[%clk 0:00:22]}  c4 {[%clk 0:00:50]} 43. h4 {[%clk 0:00:21]}  c3 {[%clk 0:00:49]} 44. Bxc3 {[%clk 0:00:20]}  Kxc3 {[%clk 0:00:49]} 45. Ke3 {[%clk 0:00:18]}  Nc2+ {[%clk 0:00:44]} 46. Kf4 {[%clk 0:00:17]}  Kd4 {[%clk 0:00:44]} 47. h5 {[%clk 0:00:16]}  Ne3 {[%clk 0:00:44]} 48. h6 {[%clk 0:00:15]}  e5+ {[%clk 0:00:44]} 49. Kg5 {[%clk 0:00:14]}  Kxe4 {[%clk 0:00:43]} 50. h7 {[%clk 0:00:14]}  Kf3 {[%clk 0:00:39]} 51. h8=Q {[%clk 0:00:14]}  e4 {[%clk 0:00:40]} 52. Qc3 {[%clk 0:00:12]}  Ke2 {[%clk 0:00:36]} 53. Qd4 {[%clk 0:00:12]}  Kf3 {[%clk 0:00:36]} 54. Qe5 {[%clk 0:00:11]}  Ng2 {[%clk 0:00:32]} 55. Qd5 {[%clk 0:00:07]}  Ne3 {[%clk 0:00:30]} 56. Qd2 {[%clk 0:00:07]}  Ng2 {[%clk 0:00:27]} 57. Qxg2+ {[%clk 0:00:05]}  Kxg2 {[%clk 0:00:26]} 58. Kf4 {[%clk 0:00:06]}  Kh3 {[%clk 0:00:26]} 59. g5 {[%clk 0:00:06]}  Kg2 {[%clk 0:00:23]} 60. Kxe4 {[%clk 0:00:06]}  Kg3 {[%clk 0:00:23]} 61. g6 {[%clk 0:00:06]}  Kf2 {[%clk 0:00:24]} 62. g7 {[%clk 0:00:07]} 1-0


[Site "https://www.chess.com"]

[Event "Titled Tuesday Blitz May 31 Late 2022"]
[White "Piesik, Piotr"]
[Black "Drygalov, Andrey"]
[WhiteFideId "1136194"]
[BlackFideId "24171735"]
[WhiteElo "2190"]
[BlackElo "2540"]
[Result "0-1"]
[Round "07"]
[TimeControl "180+1"]
[Date "2022.05.31"]
[WhiteClock "0:00:01"]
[BlackClock "0:00:13"]

1. Nf3 {[%clk 0:02:58]}  d5 {[%clk 0:02:59]} 2. g3 {[%clk 0:02:56]}  g6 {[%clk 0:03:00]} 3. Bg2 {[%clk 0:02:57]}  Bg7 {[%clk 0:03:01]} 4. O-O {[%clk 0:02:57]}  Nf6 {[%clk 0:03:01]} 5. d4 {[%clk 0:02:56]}  O-O {[%clk 0:03:02]} 6. c4 {[%clk 0:02:57]}  c6 {[%clk 0:03:02]} 7. Nc3 {[%clk 0:02:56]}  dxc4 {[%clk 0:03:03]} 8. a4 {[%clk 0:02:56]}  a5 {[%clk 0:03:01]} 9. e3 {[%clk 0:02:55]}  Na6 {[%clk 0:03:00]} 10. Ne5 {[%clk 0:02:52]}  Be6 {[%clk 0:03:01]} 11. Qe2 {[%clk 0:02:52]}  Nb4 {[%clk 0:02:51]} 12. Nxc4 {[%clk 0:02:52]}  Qc7 {[%clk 0:02:50]} 13. Bd2 {[%clk 0:02:46]}  Rfd8 {[%clk 0:02:50]} 14. Rfc1 {[%clk 0:02:43]}  Nfd5 {[%clk 0:02:31]} 15. Nxd5 {[%clk 0:02:41]}  Bxd5 {[%clk 0:02:31]} 16. Bxb4 {[%clk 0:02:34]}  axb4 {[%clk 0:02:27]} 17. b3 {[%clk 0:02:34]}  Bxg2 {[%clk 0:02:21]} 18. Kxg2 {[%clk 0:02:35]}  c5 {[%clk 0:02:21]} 19. Nd2 {[%clk 0:02:28]}  b6 {[%clk 0:02:20]} 20. Qf3 {[%clk 0:01:48]}  Qb8 {[%clk 0:02:13]} 21. Nc4 {[%clk 0:01:39]}  cxd4 {[%clk 0:02:13]} 22. exd4 {[%clk 0:01:39]}  Bxd4 {[%clk 0:02:11]} 23. Rab1 {[%clk 0:01:39]}  Bc5 {[%clk 0:02:09]} 24. Rd1 {[%clk 0:01:35]}  Ra7 {[%clk 0:02:04]} 25. Qc6 {[%clk 0:01:29]}  Rc7 {[%clk 0:01:50]} 26. Qe4 {[%clk 0:01:20]}  Rcd7 {[%clk 0:01:44]} 27. Rxd7 {[%clk 0:01:19]}  Rxd7 {[%clk 0:01:45]} 28. Re1 {[%clk 0:01:17]}  Qd8 {[%clk 0:01:35]} 29. Qc6 {[%clk 0:01:07]}  Rc7 {[%clk 0:01:27]} 30. Qe4 {[%clk 0:01:04]}  e6 {[%clk 0:01:22]} 31. Re2 {[%clk 0:01:00]}  Qd5 {[%clk 0:01:19]} 32. Qxd5 {[%clk 0:00:48]}  exd5 {[%clk 0:01:20]} 33. Re8+ {[%clk 0:00:48]}  Kg7 {[%clk 0:01:20]} 34. Ne5 {[%clk 0:00:49]}  Bd4 {[%clk 0:00:57]} 35. Nd3 {[%clk 0:00:45]}  Rc2 {[%clk 0:00:50]} 36. Kf1 {[%clk 0:00:27]}  Rd2 {[%clk 0:00:45]} 37. Nxb4 {[%clk 0:00:27]}  Rxf2+ {[%clk 0:00:43]} 38. Ke1 {[%clk 0:00:27]}  Rb2 {[%clk 0:00:34]} 39. Nxd5 {[%clk 0:00:26]}  Rxb3 {[%clk 0:00:34]} 40. Re4 {[%clk 0:00:22]}  Bc5 {[%clk 0:00:34]} 41. Rc4 {[%clk 0:00:20]}  Ra3 {[%clk 0:00:34]} 42. g4 {[%clk 0:00:18]}  g5 {[%clk 0:00:27]} 43. Kf1 {[%clk 0:00:16]}  Kg6 {[%clk 0:00:24]} 44. Kg2 {[%clk 0:00:16]}  h5 {[%clk 0:00:22]} 45. h3 {[%clk 0:00:14]}  h4 {[%clk 0:00:22]} 46. Nc3 {[%clk 0:00:11]}  f6 {[%clk 0:00:16]} 47. Ne4 {[%clk 0:00:10]}  Be3 {[%clk 0:00:16]} 48. Rc6 {[%clk 0:00:07]}  Bd4 {[%clk 0:00:16]} 49. Rc4 {[%clk 0:00:06]}  Be5 {[%clk 0:00:16]} 50. Rb4 {[%clk 0:00:04]}  Ra2+ {[%clk 0:00:15]} 51. Kg1 {[%clk 0:00:03]}  Rh2 {[%clk 0:00:15]} 52. Rb3 {[%clk 0:00:03]}  Ra2 {[%clk 0:00:14]} 53. Rxb6 {[%clk 0:00:01]}  Rxa4 {[%clk 0:00:13]} 0-1


[Site "https://www.chess.com"]

[Event "Titled Tuesday Blitz May 31 Late 2022"]
[White "Pinheiro, Iung Alicio de O."]
[Black "Janaszak, Dawid"]
[WhiteFideId "2104350"]
[BlackFideId "1119206"]
[WhiteElo "2283"]
[BlackElo "2199"]
[Result "0-1"]
[Round "07"]
[TimeControl "180+1"]
[Date "2022.06.01"]
[WhiteClock "0:00:03"]
[BlackClock "0:01:35"]

1. c4 {[%clk 0:03:00]}  Nf6 {[%clk 0:02:59]} 2. g3 {[%clk 0:02:58]}  g6 {[%clk 0:02:59]} 3. Bg2 {[%clk 0:02:58]}  Bg7 {[%clk 0:02:59]} 4. Nc3 {[%clk 0:02:57]}  O-O {[%clk 0:02:59]} 5. d3 {[%clk 0:02:57]}  d6 {[%clk 0:02:59]} 6. Bg5 {[%clk 0:02:56]}  h6 {[%clk 0:02:54]} 7. Bd2 {[%clk 0:02:55]}  c5 {[%clk 0:02:52]} 8. Qc1 {[%clk 0:02:50]}  Kh7 {[%clk 0:02:51]} 9. h4 {[%clk 0:02:50]}  Nc6 {[%clk 0:02:49]} 10. Nf3 {[%clk 0:02:49]}  Bg4 {[%clk 0:02:47]} 11. h5 {[%clk 0:02:50]}  g5 {[%clk 0:02:40]} 12. Nxg5+ {[%clk 0:02:01]}  hxg5 {[%clk 0:02:40]} 13. h6 {[%clk 0:02:02]}  Bh8 {[%clk 0:02:36]} 14. Bxg5 {[%clk 0:02:03]}  Qd7 {[%clk 0:02:30]} 15. Rh4 {[%clk 0:01:43]}  Bf5 {[%clk 0:02:27]} 16. Qd2 {[%clk 0:01:26]}  Rg8 {[%clk 0:02:27]} 17. O-O-O {[%clk 0:01:25]}  Rab8 {[%clk 0:02:14]} 18. Bxf6 {[%clk 0:00:32]}  Bxf6 {[%clk 0:02:11]} 19. Rh5 {[%clk 0:00:33]}  Bg6 {[%clk 0:02:11]} 20. Rh2 {[%clk 0:00:29]}  b5 {[%clk 0:02:07]} 21. cxb5 {[%clk 0:00:15]}  Nd4 {[%clk 0:02:07]} 22. Be4 {[%clk 0:00:15]}  Nxb5 {[%clk 0:02:06]} 23. Bxg6+ {[%clk 0:00:13]}  Rxg6 {[%clk 0:02:07]} 24. Nd5 {[%clk 0:00:11]}  Nd4 {[%clk 0:02:00]} 25. Nxf6+ {[%clk 0:00:11]}  Rxf6 {[%clk 0:01:57]} 26. Qg5 {[%clk 0:00:06]}  Rg6 {[%clk 0:01:52]} 27. Qe3 {[%clk 0:00:06]}  Qb5 {[%clk 0:01:50]} 28. Rd2 {[%clk 0:00:05]}  e5 {[%clk 0:01:48]} 29. f4 {[%clk 0:00:04]}  Qa4 {[%clk 0:01:47]} 30. Kb1 {[%clk 0:00:02]}  Rb6 {[%clk 0:01:35]} 31. fxe5 {[%clk 0:00:02]}  Ra6 {[%clk 0:01:35]} 32. Rf2 {[%clk 0:00:03]}  Qxa2+ {[%clk 0:01:35]} 0-1


[Site "https://www.chess.com"]

[Event "Titled Tuesday Blitz May 31 Late 2022"]
[White "Rostovtsev, Dmitry"]
[Black "Chen, Justin"]
[WhiteFideId "34278320"]
[BlackFideId "2098199"]
[WhiteElo "2274"]
[BlackElo "2465"]
[Result "1-0"]
[Round "07"]
[TimeControl "180+1"]
[Date "2022.05.31"]
[WhiteClock "0:02:08"]
[BlackClock "0:01:55"]

1. e4 {[%clk 0:03:00]}  d6 {[%clk 0:02:56]} 2. d4 {[%clk 0:02:59]}  Nf6 {[%clk 0:02:56]} 3. Nc3 {[%clk 0:02:57]}  e5 {[%clk 0:02:57]} 4. Nf3 {[%clk 0:02:57]}  Nbd7 {[%clk 0:02:57]} 5. Bc4 {[%clk 0:02:57]}  Be7 {[%clk 0:02:57]} 6. O-O {[%clk 0:02:57]}  O-O {[%clk 0:02:58]} 7. a4 {[%clk 0:02:55]}  c6 {[%clk 0:02:58]} 8. a5 {[%clk 0:02:54]}  Qc7 {[%clk 0:02:49]} 9. Re1 {[%clk 0:02:51]}  Rb8 {[%clk 0:02:46]} 10. Bf1 {[%clk 0:02:50]}  b5 {[%clk 0:02:44]} 11. axb6 {[%clk 0:02:51]}  axb6 {[%clk 0:02:45]} 12. d5 {[%clk 0:02:49]}  b5 {[%clk 0:02:34]} 13. dxc6 {[%clk 0:02:46]}  Qxc6 {[%clk 0:02:35]} 14. Nd5 {[%clk 0:02:39]}  Nxd5 {[%clk 0:02:33]} 15. exd5 {[%clk 0:02:40]}  Qb7 {[%clk 0:02:26]} 16. Ra5 {[%clk 0:02:35]}  b4 {[%clk 0:02:12]} 17. Be3 {[%clk 0:02:35]}  Nf6 {[%clk 0:02:04]} 18. Ra7 {[%clk 0:02:21]}  Qxd5 {[%clk 0:02:04]} 19. Rxe7 {[%clk 0:02:18]}  Qa2 {[%clk 0:02:02]} 20. Qxd6 {[%clk 0:02:14]}  Bf5 {[%clk 0:01:55]} 21. Qxe5 {[%clk 0:02:12]}  Bxc2 {[%clk 0:01:55]} 22. Bg5 {[%clk 0:02:08]} 1-0


[Site "https://www.chess.com"]

[Event "Titled Tuesday Blitz May 31 Late 2022"]
[White "Rustemov, Alexander"]
[Black "Eynullayev, Atilla"]
[WhiteFideId "4119002"]
[BlackFideId "13413570"]
[WhiteElo "2801"]
[BlackElo "1936"]
[Result "0-1"]
[Round "07"]
[TimeControl "180+1"]
[Date "2022.05.31"]
[WhiteClock "0:00:07"]
[BlackClock "0:00:17"]

1. d4 {[%clk 0:03:00]}  Nf6 {[%clk 0:02:59]} 2. c4 {[%clk 0:03:00]}  e6 {[%clk 0:03:00]} 3. Nf3 {[%clk 0:03:01]}  d5 {[%clk 0:03:00]} 4. Nc3 {[%clk 0:03:01]}  c5 {[%clk 0:03:00]} 5. cxd5 {[%clk 0:03:01]}  cxd4 {[%clk 0:03:01]} 6. Qxd4 {[%clk 0:02:57]}  exd5 {[%clk 0:03:01]} 7. Bg5 {[%clk 0:02:58]}  Be7 {[%clk 0:03:01]} 8. e3 {[%clk 0:02:57]}  O-O {[%clk 0:03:01]} 9. Bd3 {[%clk 0:02:55]}  h6 {[%clk 0:03:01]} 10. Bh4 {[%clk 0:02:55]}  Nc6 {[%clk 0:03:00]} 11. Qa4 {[%clk 0:02:53]}  Be6 {[%clk 0:02:57]} 12. O-O {[%clk 0:02:52]}  Qb6 {[%clk 0:02:58]} 13. Qb5 {[%clk 0:02:51]}  Qxb5 {[%clk 0:02:54]} 14. Nxb5 {[%clk 0:02:50]}  g5 {[%clk 0:02:54]} 15. Bg3 {[%clk 0:02:49]}  Ne4 {[%clk 0:02:43]} 16. Nfd4 {[%clk 0:02:42]}  Nxd4 {[%clk 0:02:36]} 17. Nxd4 {[%clk 0:02:42]}  Nxg3 {[%clk 0:02:15]} 18. hxg3 {[%clk 0:02:41]}  Bf6 {[%clk 0:02:16]} 19. Rad1 {[%clk 0:02:17]}  Rac8 {[%clk 0:02:15]} 20. Rd2 {[%clk 0:02:14]}  Rfd8 {[%clk 0:02:02]} 21. Bb1 {[%clk 0:02:11]}  Rc4 {[%clk 0:01:50]} 22. Rfd1 {[%clk 0:02:10]}  Rdc8 {[%clk 0:01:45]} 23. Kf1 {[%clk 0:01:53]}  Rc1 {[%clk 0:01:43]} 24. Ke2 {[%clk 0:01:50]}  Bg4+ {[%clk 0:01:28]} 25. f3 {[%clk 0:01:49]}  Be6 {[%clk 0:01:28]} 26. g4 {[%clk 0:01:49]}  Rxd1 {[%clk 0:01:25]} 27. Kxd1 {[%clk 0:01:48]}  Kf8 {[%clk 0:01:09]} 28. Bc2 {[%clk 0:01:48]}  Ke7 {[%clk 0:01:09]} 29. Bb3 {[%clk 0:01:48]}  Rc5 {[%clk 0:01:08]} 30. Ne2 {[%clk 0:01:36]}  b5 {[%clk 0:01:03]} 31. Ng3 {[%clk 0:01:33]}  a5 {[%clk 0:01:01]} 32. a3 {[%clk 0:01:29]}  d4 {[%clk 0:00:40]} 33. Bxe6 {[%clk 0:01:27]}  dxe3 {[%clk 0:00:40]} 34. Re2 {[%clk 0:01:20]}  fxe6 {[%clk 0:00:41]} 35. Ne4 {[%clk 0:01:12]}  Rd5+ {[%clk 0:00:39]} 36. Kc2 {[%clk 0:01:11]}  Bd4 {[%clk 0:00:40]} 37. Re1 {[%clk 0:01:07]}  Bb6 {[%clk 0:00:39]} 38. Rd1 {[%clk 0:00:58]}  Rxd1 {[%clk 0:00:37]} 39. Kxd1 {[%clk 0:00:58]}  Bd4 {[%clk 0:00:33]} 40. b3 {[%clk 0:00:55]}  Kd7 {[%clk 0:00:32]} 41. Ke2 {[%clk 0:00:49]}  a4 {[%clk 0:00:31]} 42. bxa4 {[%clk 0:00:48]}  bxa4 {[%clk 0:00:31]} 43. Kd3 {[%clk 0:00:49]}  e5 {[%clk 0:00:30]} 44. Ng3 {[%clk 0:00:37]}  Bc5 {[%clk 0:00:26]} 45. Kc4 {[%clk 0:00:38]}  Kc6 {[%clk 0:00:21]} 46. Ne2 {[%clk 0:00:20]}  Bxa3 {[%clk 0:00:21]} 47. Nc3 {[%clk 0:00:20]}  Bc1 {[%clk 0:00:17]} 48. Kd3 {[%clk 0:00:17]}  a3 {[%clk 0:00:18]} 49. Ke2 {[%clk 0:00:14]}  Kc5 {[%clk 0:00:16]} 50. Kd3 {[%clk 0:00:14]}  Bd2 {[%clk 0:00:16]} 51. Na2 {[%clk 0:00:11]}  Kb5 {[%clk 0:00:16]} 52. g3 {[%clk 0:00:09]}  Kc5 {[%clk 0:00:17]} 53. Kc2 {[%clk 0:00:07]}  Kc4 {[%clk 0:00:17]} 0-1


[Site "https://www.chess.com"]